Cogmind - Beta 11 X6 @@@ ROGUE MODE // 2021.08.08 @ 19:05:10 Player: Plexion Result: Destroyed by P1-3CE with P1-3CE's Gatling Flakker Performance ------------- Evolutions (1) 500 Regions Visited (6) 1200 Robots Destroyed (63) 315 Value Destroyed (1228) 1228 Prototype IDs (29) 580 Alien Tech Used (0) 0 Bonus (276) 276 TOTAL SCORE: 4099 Bonus ------- High Alert Combat Kills 2 Follower Combat Kills 7 Aligned with FarCom 300 Friendly Fire -33 Cogmind --------- Core Integrity 0/400 Matter 202/300 Energy 85/100 System Corruption 2% Temperature Cool (0) Movement Core (350) Ox6 Location -8/Mines Parts ------- > --- POWER (1) -------- (None) > --- PROPULSION (2) --- (None) > --- UTILITY (4) ------ Large Storage Unit > --- WEAPON (2) ------- (None) > --- INVENTORY (15) --- Reinforced Fission Core Gravity Neutralizing Apparatus Advanced Weapon Cycler Improved EM Shotgun Medium Laser Assault Rifle Light Assault Rifle Light Assault Rifle Light Assault Rifle Light Assault Rifle Plasma Cutter Peak State ------------ > --- POWER ------------ Heavy Ion Engine > --- PROPULSION ------- Advanced Myomer Leg Advanced Myomer Leg > --- UTILITY ---------- Large Storage Unit Light Armor Plating > --- WEAPON ----------- AWS/Gauss > --- INVENTORY -------- Improved EM Shotgun Medium Laser Assault Rifle Assault Rifle Light Assault Rifle Light Assault Rifle Light Assault Rifle Light Assault Rifle Heavy Assault Rifle 8R-AWN's Boregun Rocket Launcher Plasma Cutter [Rating: 39] Favorites ----------- Power Heavy Ion Engine Engine Heavy Ion Engine Propulsion Light Treads Treads Light Treads Leg Advanced Myomer Leg Utility Hardened Light Armor Plating Device Decoy Drone Bay Storage Large Storage Unit Protection Hardened Light Armor Plating Weapon Heavy Assault Rifle Energy Gun Small Laser Ballistic Gun Heavy Assault Rifle Launcher Rocket Launcher Special Weapon Plasma Cutter Build | -11 -10 -10 -9 -9 -9 -8 ------- Run | Scr Mat Min Mat Min Exi Min Slots Evolved 2 | . . . 2 . . . Power . | . . . . . . . Propulsion . | . . . . . . . Utility 2 | . . . 2 . . . Weapon . | . . . . . . . Parts Attached 45 | 6 6 2 14 3 11 3 Power 3 | 1 1 . 1 . . . Engine 3 | 1 1 . 1 . . . Core . | . . . . . . . Reactor . | . . . . . . . Propulsion 10 | 2 . . 4 1 3 . Treads 8 | 2 . . 4 1 1 . Leg 2 | . . . . . 2 . Wheel . | . . . . . . . Hover . | . . . . . . . Flight . | . . . . . . . Utility 11 | 1 2 1 4 . 3 . Device 3 | . . . 1 . 2 . Storage 2 | 1 1 . . . . . Processor . | . . . . . . . Hackware . | . . . . . . . Protection 6 | . 1 1 3 . 1 . Artifact . | . . . . . . . Weapon 21 | 2 3 1 5 2 5 3 Energy Gun 3 | 2 . . 1 . . . Energy Cannon . | . . . . . . . Ballistic Gun 12 | . 3 . 3 1 3 2 Ballistic Cannon . | . . . . . . . Launcher 5 | . . 1 1 1 1 1 Special Weapon 1 | . . . . . 1 . Impact Weapon . | . . . . . . . Slashing Weapon . | . . . . . . . Piercing Weapon . | . . . . . . . Special Melee Weapon . | . . . . . . . Unidentified Prototypes 6 | . . . 3 . 3 . Corrupted Parts 1 | . . . 1 . . . System Corruption 2 | . . . 2 . . . Parts Lost 23 | . 3 1 3 1 7 8 Power 3 | . 1 1 . . . 1 Propulsion 8 | . . . 2 1 3 2 Utility 6 | . . . 1 . 4 1 Weapon 6 | . 2 . . . . 4 Highest Loss Streak 8 | . 2 1 3 1 7 8 Average Slot Usage (%) 91 | . 90 85 81 100 94 55 Engine 10 | . 13 . 7 11 11 5 Treads 23 | . 28 28 21 22 19 . Storage 11 | . 14 14 11 11 11 11 Protection 21 | . 5 14 18 33 29 5 Energy Gun 2 | . 6 . 2 . . . Ballistic Gun 19 | . 21 14 13 21 19 5 Launcher 1 | . . 14 6 . . 5 Naked Turns . | . . . . . . . Heaviest Build 55 | 11 30 28 50 49 55 30 Greatest Support 60 | 40 40 40 40 40 60 60 Greatest Overweight (x) 13 | 1 . . 8 1 13 . Average Overweight (x) . | . . . . 1 1 . Largest Inventory Capacity 15 | 8 15 15 15 15 15 15 Average Capacity 13 | 7 9 15 15 15 15 15 Most Carried 15 | 2 3 6 15 14 15 13 Average Carried 9 | . 1 4 9 13 13 12 Final Capacity 15 | 8 15 15 15 15 15 15 Final Carried 14 | 2 3 5 14 13 13 11 Class Distribution -------------------- 100% | Mutant Dominant Class ---------------- Mutant | -10/Materials Mutant | -10/Mines Mutant | -9/Materials Mutant | -9/Mines Mutant | -9/Exiles Mutant | -8/Mines Resources | -11 -10 -10 -9 -9 -9 -8 ----------- Run | Scr Mat Min Mat Min Exi Min Matter Collected 1084 | 199 177 8 323 257 120 . Remotely . | . . . . . . . Salvage Created 1495 | . 546 32 514 229 120 54 Parts 123 | . 39 6 42 21 5 10 Haulers Intercepted 1 | . . . 1 . . . Recyclers Shooed . | . . . . . . . Parts Field Recycled . | . . . . . . . Retrieved Matter . | . . . . . . . Parts Self-Destructed . | . . . . . . . Prevented . | . . . . . . . Kills | -11 -10 -10 -9 -9 -9 -8 ------- Run | Scr Mat Min Mat Min Exi Min Combat Hostiles Destroyed 59 | . 17 6 17 12 1 6 Guns 37 | . 17 . 8 11 1 . AOE 22 | . . 6 9 1 . 6 Classes Destroyed 8 | . 2 . 5 1 . . Worker 2 | . . . 1 1 . . Builder 1 | . . . 1 . . . Hauler 1 | . . . 1 . . . Swarmer 35 | . 6 6 10 9 . 4 Grunt 19 | . 11 . 4 2 . 2 Brawler 1 | . . . 1 . . . Duelist 1 | . . . . 1 . . Sentry 2 | . . . 2 . . . Best Kill Streak 6 | . 3 3 5 5 1 6 Combat Bots Only 6 | . 3 3 5 4 1 6 Max Kills in Single Turn 4 | . 1 3 3 1 1 4 Gunslinging 1 | . . . 1 . . . Exploded 4 | . . 3 3 1 . 4 Melee . | . . . . . . . Uniques/NPCs Destroyed 1 | . . . . . 1 . 8R-AWN (-9/Exiles) Combat | -11 -10 -10 -9 -9 -9 -8 -------- Run | Scr Mat Min Mat Min Exi Min Damage Taken 3839 | . 657 162 567 592 681 1180 Core 546 | . 125 . 37 39 46 299 Absorbed by Shields . | . . . . . . . Core Remaining (%) 75 | 100 . 50 . . . . Volleys Fired 144 | . 63 4 28 36 5 8 Largest 2 | . 2 1 2 2 2 1 Hottest 90 | . 90 33 68 43 40 33 Shots Fired 309 | . 126 4 47 70 54 8 Gun 281 | . 126 . 38 68 49 . Cannon . | . . . . . . . Launcher 23 | . . 4 9 2 . 8 Special 5 | . . . . . 5 . Kinetic 235 | . 90 . 28 68 49 . Thermal 41 | . 36 . . . 5 . Explosive 23 | . . 4 9 2 . 8 Electromagnetic 10 | . . . 10 . . . Robot Hit Streak 47 | . 13 9 12 7 47 3 Robot Miss Streak 4 | . 2 . 3 4 1 2 Penetration Max . | . . . . . . . Secondary Targets 8 | . 2 . 2 4 . . Max Gunslinging Chain 1 | . 1 . 1 1 . . Autonomous 44 | . . . . . 44 . Shots Hit Robots 207 | . 82 1 32 37 51 4 Core Hits 107 | . 38 6 28 16 8 11 Critical Kills . | . . . . . . . Critical Parts Destroyed . | . . . . . . . Critical Strikes 1 | . . . . . 1 . Sever 1 | . . . . . 1 . Melee Attacks . | . . . . . . . Impact . | . . . . . . . Slashing . | . . . . . . . Piercing . | . . . . . . . Sneak Attacks . | . . . . . . . Combat Hostiles . | . . . . . . . Follow-up Attacks . | . . . . . . . Damage Inflicted 4963 | . 745 461 1075 669 1317 696 Guns 3010 | . 745 . 470 481 1314 . Cannons . | . . . . . . . Explosions 1950 | . . 461 605 188 . 696 Melee . | . . . . . . . Ramming . | . . . . . . . Kinetic 2623 | . 501 . 327 481 1314 . Thermal 247 | . 244 . . . 3 . Explosive 1950 | . . 461 605 188 . 696 Electromagnetic 143 | . . . 143 . . . Impact . | . . . . . . . Slashing . | . . . . . . . Piercing . | . . . . . . . Highest Corruption 2 | . . . 2 2 2 2 Average Corruption 2 | . . . 2 2 2 2 Corruption Purged . | . . . . . . . Effects 17 | . . . 1 9 7 . Message Errors 9 | . . . . 6 3 . Heat Flow Errors 4 | . . . . 1 3 . Energy Discharges 2 | . . . 1 . 1 . Data Loss (minor) 2 | . . . . 2 . . Overload Shots . | . . . . . . . Overflow Damage 42 | . . 27 . . . 15 Projectiles . | . . . . . . . Explosions 42 | . . 27 . . . 15 Melee . | . . . . . . . Knockbacks . | . . . . . . . Impact . | . . . . . . . Kinetic . | . . . . . . . Secondary . | . . . . . . . Self-Inflicted Damage 310 | . . 122 86 . . 102 Shots 9 | . . 3 3 . . 3 Rammed . | . . . . . . . Targets Rammed . | . . . . . . . Kicked . | . . . . . . . Crushed . | . . . . . . . Highest Temperature 387 | . 120 . 105 387 257 56 Average Temperature 87 | . 38 . 37 126 101 37 Received Heat Transfer 618 | . 264 . 102 63 . 189 Effects 5 | . . . . 3 2 . Shutdowns 1 | . . . . 1 . . Energy Bleed 1 | . . . . 1 . . Interference 2 | . . . . . 2 . Damage (minor) 1 | . . . . 1 . . Siege Activations . | . . . . . . . Robots Corrupted . | . . . . . . . Combat Hostiles . | . . . . . . . Parts Fried . | . . . . . . . Impact Corruptions . | . . . . . . . Robots Melted . | . . . . . . . Combat Hostiles . | . . . . . . . Parts Melted . | . . . . . . . Heat Transferred 601 | . 574 . . . 27 . Parts Sabotaged . | . . . . . . . Parts Stolen . | . . . . . . . Parts Stripped . | . . . . . . . Power Chain Reactions . | . . . . . . . Missiles Intercepted . | . . . . . . . Alert | -11 -10 -10 -9 -9 -9 -8 ------- Run | Scr Mat Min Mat Min Exi Min Peak Influence 408 | . 408 256 351 245 . 121 Initial 132 | . . 96 99 132 . . Average 186 | . 274 192 199 122 . 52 Maximum Alert Level 2 | . 2 1 1 1 . . Low Security (%) 49 | 100 16 87 46 69 . 100 Level 1 49 | . 81 12 53 30 . . Level 2 . | . 2 . . . . . Level 3 . | . . . . . . . Level 4 . | . . . . . . . Level 5 . | . . . . . . . High Security . | . . . . . . . Max Security . | . . . . . . . Squads Dispatched 7 | . 5 . 2 . . . Investigation 1 | . 1 . . . . . Extermination . | . . . . . . . Reinforcement 6 | . 4 . 2 . . . Assault . | . . . . . . . Garrison . | . . . . . . . Intercept . | . . . . . . . Construction Impeded . | . . . . . . . Haulers Reinforced . | . . . . . . . Active Scanning Responses . | . . . . . . . Cargo Convoy Interrupts . | . . . . . . . Stealth | -11 -10 -10 -9 -9 -9 -8 --------- Run | Scr Mat Min Mat Min Exi Min Distress Signals 2 | . 2 . . . . . Communications Jammed . | . . . . . . . Distress Signals . | . . . . . . . Times Spotted 84 | . 38 6 18 13 1 8 Peak Tracking Total 7 | . 5 3 5 6 2 7 Tactical Retreats 6 | . 4 . . 2 . . Traps | -11 -10 -10 -9 -9 -9 -8 ------- Run | Scr Mat Min Mat Min Exi Min Traps Triggered 2 | . 2 . . . . . Indirectly . | . . . . . . . Trap Hack Attempts . | . . . . . . . Triggered . | . . . . . . . Disarmed . | . . . . . . . Reprogrammed . | . . . . . . . Reused . | . . . . . . . Traps Extracted . | . . . . . . . Installed . | . . . . . . . Triggered . | . . . . . . . Machines | -11 -10 -10 -9 -9 -9 -8 ---------- Run | Scr Mat Min Mat Min Exi Min Machines Disabled 1 | . . 1 . . . . Max in Single Turn 1 | . . 1 . . . . Machines Sabotaged . | . . . . . . . Garrisons Compromised . | . . . . . . . Overloaded Fab Kills . | . . . . . . . Fab Network Shutdowns . | . . . . . . . Hacking | -11 -10 -10 -9 -9 -9 -8 --------- Run | Scr Mat Min Mat Min Exi Min Machines Accessed 5 | . 3 1 . . 1 . Terminals 3 | . 3 . . . . . Fabricators . | . . . . . . . Repair Stations . | . . . . . . . Recycling Units . | . . . . . . . Scanalyzers . | . . . . . . . Garrison Access . | . . . . . . . Total Hacks 12 | . 10 1 . . 1 . Successful 10 | . 8 1 . . 1 . Failed 2 | . 2 . . . . . Catastrophic . | . . . . . . . Database Lockouts . | . . . . . . . Manual 11 | . 10 . . . 1 . Terminals 10 | . 10 . . . . . Fabricators . | . . . . . . . Repair Stations . | . . . . . . . Recycling Units . | . . . . . . . Scanalyzers . | . . . . . . . Garrison Access . | . . . . . . . Terminal Hacks 6 | . 4 1 . . 1 . Robot Analysis 1 | . 1 . . . . . Open Door 1 | . . 1 . . . . Terminal Index 1 | . 1 . . . . . Zone Layout 2 | . 2 . . . . . EX-Prototype ID Bank 1 | . . . . . 1 . Fabricator Hacks . | . . . . . . . Repair Station Hacks . | . . . . . . . Recycling Unit Hacks . | . . . . . . . Scanalyzer . | . . . . . . . Garrison Access Hacks . | . . . . . . . Unauthorized Hacks 4 | . 4 . . . . . Terminals 4 | . 4 . . . . . Track 3 | . 3 . . . . . Operators 1 | . 1 . . . . . Fabricators . | . . . . . . . Repair Stations . | . . . . . . . Recycling Units . | . . . . . . . Scanalyzers . | . . . . . . . Garrison Access . | . . . . . . . Data Cores Recovered . | . . . . . . . Used . | . . . . . . . Hacking Detections 1 | . 1 . . . . . Full Trace Events . | . . . . . . . Feedback Events . | . . . . . . . Feedback Blocked . | . . . . . . . Robot Schematics Acquired . | . . . . . . . Robots Built . | . . . . . . . Matter . | . . . . . . . Time . | . . . . . . . Total Robot Build Rating . | . . . . . . . Part Schematics Acquired . | . . . . . . . Parts Built . | . . . . . . . Matter . | . . . . . . . Time . | . . . . . . . Total Part Build Rating . | . . . . . . . Parts Repaired . | . . . . . . . Time . | . . . . . . . Parts Recycled . | . . . . . . . Recycled Matter . | . . . . . . . Retrieved Matter . | . . . . . . . Retrieved Components . | . . . . . . . Parts Scanalyzed . | . . . . . . . Part Schematics Acquired . | . . . . . . . Parts Damaged . | . . . . . . . Bothacking | -11 -10 -10 -9 -9 -9 -8 ------------ Run | Scr Mat Min Mat Min Exi Min Used RIF Installer . | . . . . . . . Robots Hacked . | . . . . . . . Non-combat . | . . . . . . . Combat . | . . . . . . . Robot Hacks Applied . | . . . . . . . Relay Couplers Released . | . . . . . . . Robots Rewired . | . . . . . . . Allies Hacked . | . . . . . . . Hacks Repelled . | . . . . . . . Allies | -11 -10 -10 -9 -9 -9 -8 -------- Run | Scr Mat Min Mat Min Exi Min Total Allies 1 | . . . . 1 . . Largest Group 1 | . . . . 1 . . Highest-Rated Group 31 | . . . . 31 . . Highest-Rated Ally 31 | . . . . 31 . . Total Orders . | . . . . . . . Ally Attacks 9 | . . . . 9 . . Total Damage 104 | . . . . 104 . . Kills 1 | . . . . 1 . . Allies Corrupted . | . . . . . . . Allies Melted . | . . . . . . . Intel | -11 -10 -10 -9 -9 -9 -8 ------- Run | Scr Mat Min Mat Min Exi Min Robot Analysis Total 1 | . 1 . . . . . Derelict Logs Recovered 2 | . . . . 2 . . Drone Launches . | . . . . . . . Drone Recoveries . | . . . . . . . Exploration | -11 -10 -10 -9 -9 -9 -8 ------------- Run | Scr Mat Min Mat Min Exi Min Turns Passed 3778 | 84 938 144 764 1153 667 28 Spaces Moved 1547 | 46 440 83 331 401 239 7 Core 6 | 4 . . 1 . 1 . Treads 1522 | 42 440 83 330 401 226 . Legs 19 | . . . . . 12 7 Wheels . | . . . . . . . Hover . | . . . . . . . Flight . | . . . . . . . Fastest Speed 50 | 50 160 160 160 260 120 120 Average Speed 209 | 153 160 160 198 260 260 120 Slowest Speed 700 | 160 160 160 450 260 700 120 Overloaded Moves . | . . . . . . . Propulsion Burnouts . | . . . . . . . Robots Hopped . | . . . . . . . Cave-ins Triggered . | . . . . . . . Exploration Rate (%) 45 | 5 90 19 44 85 62 11 Regions Visited 6 Branch Regions 4 Pre-discovered Areas 1 | . . . . 1 . . Known Exits Taken . | . . . . . . . Unknown Exits Taken 6 | 1 1 1 1 1 1 . Scrap Searched . | . . . . . . . Spaces Dug 43 | . . 34 . . . 9 Terrain Destroyed 181 | . . 42 61 10 17 51 Melee . | . . . . . . . Projectile 17 | . . . . . 17 . AOE 164 | . . 42 61 10 . 51 Terrain Rammed . | . . . . . . . Walls Destroyed . | . . . . . . . Machines Disabled . | . . . . . . . Actions | -11 -10 -10 -9 -9 -9 -8 --------- Run | Scr Mat Min Mat Min Exi Min Total 1827 | 56 565 90 387 442 269 18 Wait 70 | 3 52 . 6 3 6 . Move 1541 | 45 439 82 330 400 238 7 Hop . | . . . . . . . Pick Up 17 | 2 4 1 6 . 4 . Fast Attach 17 | 6 1 . 7 . 3 . Attach 14 | . 3 1 1 1 6 2 Detach 7 | . . 1 2 . 4 . Swap 14 | . 2 1 6 2 2 1 Drop 3 | . 1 . 1 . 1 . Fire 144 | . 63 4 28 36 5 8 Melee . | . . . . . . . Ram . | . . . . . . . Kick . | . . . . . . . Crush . | . . . . . . . Escape Stasis . | . . . . . . . Rewire . | . . . . . . . Trap . | . . . . . . . Miscellaneous . | . . . . . . . Route ------- -11/Scrapyard -10/Materials (discovered 5 exits: [*Mat x3] / *Min x2) -10/Mines -9/Materials (discovered 2 exits: [*Mat] / [*Min]) -9/Mines (discovered 3 exits: [*Mat] / *Exi / [*Zio]) -9/Exiles -8/Mines History --------- Turn | Location | Event 5 | -11/Scrapyard | Discovered new exit (range 15) 85 | -11/Scrapyard | Entered Materials 301 | -10/Materials | Build established: Mutant 335 | -10/Materials | Discovered new exit (range 15) 624 | -10/Materials | Discovered new exit (range 15) 747 | -10/Materials | Discovered new exit (range 8) 842 | -10/Materials | Discovered new exit (range 16) 964 | -10/Materials | Discovered new exit (range 12) 1023 | -10/Materials | Entered Mines 1058 | -10/Mines | Received a Rocket Launcher from a helpful Derelict 1068 | -10/Mines | Found the Drone Emporium 1076 | -10/Mines | Found Prototype Device 1148 | -10/Mines | Discovered new exit (range 9) 1167 | -10/Mines | Entered Materials 1167 | -9/Materials | Evolved 2 slots: Utility x2 1389 | -9/Materials | Identified Decoy Drone Bay 1417 | -9/Materials | Lost 3 parts (2n1u) 1596 | -9/Materials | Discovered new exit (range 12) 1787 | -9/Materials | Discovered new exit (range 9) 1931 | -9/Materials | Entered Mines 2072 | -9/Mines | A Derelict revealed a hidden shortcut to a safe place 2133 | -9/Mines | Learned location of Storage (-7) 2183 | -9/Mines | Received a Mining Laser from a helpful Derelict 2456 | -9/Mines | Discovered new exit (range 6) 2794 | -9/Mines | A weapon hastily lodged in a ceiling crevice suddenly fell to the ground 3074 | -9/Mines | Deemed a non-threat by the Exiles lab entrance 3074 | -9/Mines | Discovered new exit (range 5) 3084 | -9/Mines | Entered Exiles 3152 | -9/Exiles | Met 8R-AWN 3191 | -9/Exiles | Met EX-HEX 3277 | -9/Exiles | Met EX-BIN 3313 | -9/Exiles | Aligned with FarCom system 3316 | -9/Exiles | Given EX-Vault access code 3378 | -9/Exiles | Opened EX-Vault 3399 | -9/Exiles | Found AWS/Gauss 3455 | -9/Exiles | Warned to stay clear of 0b10 Research branches 3484 | -9/Exiles | Exiles lab attacked by MAIN.C 3623 | -9/Exiles | Discovered new exit (range 10) 3650 | -9/Exiles | Attacked by the Exiles 3716 | -9/Exiles | Destroyed 8R-AWN 3732 | -9/Exiles | Found Prototype Ballistic Gun 3745 | -9/Exiles | Lost 7 parts (3n4u) 3745 | -9/Exiles | Identified 8R-AWN's Boregun 3751 | -9/Exiles | Entered Mines 3762 | -8/Mines | P1-3CE came to Exiles' defense 3769 | -8/Mines | Core integrity fell below 50% 3777 | -8/Mines | Core integrity fell below 20% 3779 | -8/Mines | Destroyed by P1-3CE with P1-3CE's Gatling Flakker Last Messages --------------- 03762_ P1-3CE: "I came as fast as I could... Wait, it was you!" 03763_ T-07 Excavator destroyed. 03763_ Assault Rifle destroyed. 03763_ Critical hit (Burn: +37). 03764_ The unstable cave ceiling collapses. 03764_ Knocked back. 03764_ Lgt. Armor Plating destroyed. 03764_ Knocked back. 03764_ Hvy. Ion Engine destroyed. 03766_ 8R-AWN's Boregun destroyed. 03766_ Knocked back. 03768_ Hvy. Assault Rifle destroyed. 03773_ S-10 Pest destroyed. 03773_ Adv. Myomer Leg destroyed. 03773_ Destroyed Adv. Myomer Leg. 03773_ S-10 Pest destroyed. 03775_ G-47 Trooper destroyed. 03776_ Rocket Launcher destroyed. 03777_ The unstable cave ceiling collapses. 03779_ Adv. Myomer Leg destroyed. Map ----- +----------------------------------------------------+ | ?????????????????????????????????????????????????? | | ?????????????????????????????????????????????????? | | ?????????????????????????????????????????????????? | | ?????????????????????????????????????????????????? | | ?????????????????????????????????????????????????? | | ?????????????????????????????????????????????????? | | ?????????????????????????????????????????????????? | | ?????????????????????????????????????????????????? | | ?????????????????????????????????????????????????? | | ?????????????????????????????????????????????????? | | ?????????????????????????????????????????????????? | | ?????????????????????????????????????????????????? | | ????????????????? #??????????????????????????????? | | ?????????????????? #????????????#????????????????? | | ??????????????????? ###?????#### ????????????????? | | ??????????????????? #???# ?????????????????? | | ???????????????????? ### ?????????????????? | | ????????????????????? ??????????????????? | | ?????????????????????# ???????????????????? | | ?????????????????????# * ???????????????????? | | ?????????????????????# =% ????????????????????? | | ?????????????????????# ==[ #????????????????????? | | ?????????????????##???# %* #????????????????????? | | ????????????????## ???# [% #????????????????????? | | ???????????????## ## # [ ##???????????????????? | | ???????????????# # @ # #????????????????? | | ??????????#"###; #????????????????? | | ?????# $!!M # #????????????????? | | ?????# = = g #????????????????? | | ?????# ######## #????????????????? | | ????????????????# ####????????????????? | | ????????????????## ##???????????????????? | | ?????????????????# # u#????????????????????? | | ????????????????# ## # # ???????????????????? | | ???????????????# ##?#### ###??????????????????? | | ?????????????? #???????$ #????????????????????? | | ????????????? ???????? #????????????????????? | | ????????????# ???????? #????????????????????? | | ????????????## ???????? #????????????????????? | | ?????????????### ???????? #????????????????????? | | ???????????????# ???????? #????????????????????? | | ???????????????# ????????????????????????????????? | | ?????????????????????????????????????????????????? | | ?????????????????????????????????????????????????? | | ?????????????????????????????????????????????????? | | ?????????????????????????????????????????????????? | | ?????????????????????????????????????????????????? | | ?????????????????????????????????????????????????? | | ?????????????????????????????????????????????????? | | ?????????????????????????????????????????????????? | +----------------------------------------------------+ Best States ------------- Heat Dissipation 28 Energy Generation 14 Energy Capacity 280 Matter Stores 300 Matter Capacity 300 Sight Range 16 Terrain Scan Density 10 Armor Coverage 450 Evasion (%) 50 Recoil Reduction 2 Item Schematics ----------------- None Robot Schematics ------------------ None Fabricated ------------ Nothing Alien Tech Used ----------------- None Achievements -------------- None Challenges ------------ None Game ------ Seed HypervelocityWeldingLoader Manual? 0 Play Time 00:17:46 Cumulative 215.2 hours Start 2021.08.08 @ 18:42:51 End 2021.08.08 @ 19:05:10 Sessions 1 Manual Loads 0 Difficulty Rogue Special Mode None Game No. 283 Rogue 196 Adventurer 87 Explorer 0 Win Type - Total 4 Types 3/0/0/1/0/0/0/0/0 Lore% 68 Gallery% 76 Achievement% 62 Wizard Run 0 Options --------- ASCII 0 Keyboard 1 Movement Numpad Keybinds 0 Fullscreen 1 Font 18/Smallcaps Map View 76x50 Tactical HUD 1 Map Filters NONE Filters NONE Steam 1 RUN: 457e397e-6371-4131-9dbd-d1b875429243